bitfinex/quotes_BTCUSD_20250513
["timestamp","ask_amount","ask_price","bid_price","bid_amount"]
[1747157995183,0.037891,103890.0,103880.0,1.18824618]
[1747157995408,0.01924973,103890.0,103880.0,1.18824618]
[1747157995769,0.04144825,103900.0,103890.0,0.55176197]
[1747157996024,0.02887243,103900.0,103890.0,0.86452739]
[1747157996230,0.02887243,103900.0,103890.0,1.07304749]
[1747157996231,0.04751251,103900.0,103890.0,1.07304749]
[1747157996444,0.03788797,103900.0,103890.0,1.07304749]
[1747157996668,0.00901554,103900.0,103890.0,1.07304749]
[1747157996878,0.01963943,103900.0,103890.0,1.40781282]
[1747157997096,0.02024797,103900.0,103890.0,1.40781282]
[1747157997330,0.02224797,103900.0,103890.0,1.40781282]
[1747157997547,0.03187223,103900.0,103890.0,1.40781282]
[1747157998646,0.03187223,103900.0,103890.0,1.37618791]
[1747157998647,0.04149668,103900.0,103890.0,1.37618791]
[1747157998865,0.04149668,103900.0,103890.0,1.08267249]
[1747157999085,0.02887223,103900.0,103890.0,1.08267249]
[1747157999496,0.03849659,103900.0,103890.0,1.08367249]
[1747158000870,0.07102113,103900.0,103890.0,1.0547972]
[1747158001108,0.06139659,103900.0,103890.0,1.07404758]
[1747158001360,0.06139659,103900.0,103890.0,1.08367258]
[1747158001964,0.04214797,103900.0,103890.0,1.09329749]
[1747158002174,0.02887214,103900.0,103890.0,1.11449749]
[1747158002380,0.01924797,103900.0,103890.0,1.41763791]
[1747158002953,0.02887214,103900.0,103890.0,1.41763791]
[1747158003127,0.02887214,103900.0,103890.0,1.39643791]
[1747158003327,0.01924797,103900.0,103890.0,1.39643791]
[1747158003969,0.02887233,103900.0,103890.0,1.386813]
[1747158004173,0.01924797,103900.0,103890.0,1.39643791]
[1747158004372,0.00962389,103900.0,103890.0,1.39643791]
[1747158005106,0.01924788,103900.0,103890.0,1.39643791]
[1747158005313,0.00962389,103900.0,103890.0,0.98902576]
[1747158005450,0.05742334,103910.0,103900.0,0.54211723]
[1747158005673,0.002,103910.0,103900.0,0.96872722]
[1747158005873,0.01162306,103910.0,103900.0,0.96872722]
[1747158006413,0.01162297,103910.0,103900.0,0.96872722]
[1747158006608,0.02224612,103910.0,103900.0,0.95910323]
[1747158006818,0.02224612,103910.0,103900.0,0.96872722]
[1747158007279,0.02124612,103910.0,103900.0,0.96872722]
[1747158007473,0.02124612,103910.0,103900.0,0.87397716]
[1747158007834,0.02324612,103910.0,103900.0,0.87397716]
[1747158008257,0.23296713,103910.0,103900.0,0.84510464]
[1747158008454,0.07141659,103910.0,103900.0,0.85472918]
[1747158008680,0.01162297,103910.0,103900.0,0.87497743]
[1747158008882,0.02124612,103910.0,103900.0,0.87497743]
[1747158009086,0.03086936,103910.0,103900.0,0.87497743]
[1747158009568,0.01162297,103910.0,103900.0,0.87497743]
[1747158009939,0.02124612,103910.0,103900.0,0.87497743]
[1747158010371,0.01162297,103910.0,103900.0,0.87497743]
[1747158010786,0.02124603,103910.0,103900.0,0.87497743]
[1747158012936,0.27926704,103910.0,103900.0,0.8364801]
[1747158013147,0.27926778,103910.0,103900.0,0.8364801]
[1747158013335,0.0675463,103910.0,103900.0,0.8364801]
[1747158013648,0.07716964,103910.0,103900.0,0.85572918]
[1747158013856,0.03482306,103910.0,103900.0,0.88460161]
[1747158014068,0.002,103910.0,103900.0,0.88460161]
[1747158014289,0.01162297,103910.0,103900.0,0.88460161]
[1747158014729,0.01162297,103910.0,103900.0,0.90710161]
[1747158014730,0.002,103910.0,103900.0,0.90710161]
[1747158014962,0.002,103910.0,103900.0,1.02781101]
[1747158015210,0.002,103910.0,103900.0,1.33079833]
[1747158015461,0.002,103910.0,103900.0,1.89837233]
[1747158017607,0.03182028,103940.0,103930.0,0.56130167]
[1747158017807,0.05106159,103940.0,103930.0,0.86428908]
[1747158017985,0.06274084,103940.0,103930.0,0.87391029]
[1747158018423,0.05106159,103940.0,103930.0,0.84504629]
[1747158018627,0.07236159,103940.0,103930.0,0.85466787]
[1747158018840,0.07241001,103940.0,103930.0,0.85466787]
[1747158019413,0.07241001,103940.0,103930.0,0.86428936]
[1747158019414,0.07541001,103940.0,103930.0,0.86428936]
[1747158019657,0.08503094,103940.0,103930.0,0.86428936]
[1747158020036,0.08503094,103940.0,103930.0,0.85466787]
[1747158020249,0.26782936,103940.0,103930.0,0.83542453]
[1747158020450,0.26782936,103940.0,103930.0,0.85466806]
[1747158020696,0.26782936,103940.0,103930.0,0.86428964]
[1747158020893,0.27182936,103940.0,103930.0,0.88550323]
[1747158021131,0.27182936,103940.0,103930.0,0.87588165]
[1747158021337,0.27182936,103940.0,103930.0,0.85663812]
[1747158021540,0.2622088,103940.0,103930.0,0.86625988]
[1747158021748,0.2622088,103940.0,103930.0,0.88550304]
[1747158021972,0.2622088,103940.0,103930.0,0.88550313]
[1747158022741,0.03886889,103940.0,103930.0,0.89512462]
[1747158022949,0.05810936,103940.0,103930.0,0.90474583]
[1747158023170,0.04848889,103940.0,103930.0,0.90474583]
[1747158023382,0.05810936,103940.0,103930.0,0.90474583]
[1747158023993,0.05810936,103940.0,103930.0,0.90474592]
[1747158023994,0.06773011,103940.0,103930.0,0.90474592]
[1747158024640,0.28274946,103940.0,103930.0,0.85663812]
[1747158024842,0.28274946,103940.0,103930.0,0.66420091]
[1747158024843,0.26350871,103940.0,103930.0,0.66420091]
[1747158025057,0.26350871,103940.0,103930.0,0.85663812]
[1747158025412,0.26350871,103940.0,103930.0,0.87588137]
[1747158025614,0.26350871,103940.0,103930.0,0.87588155]
[1747158025978,0.26350871,103940.0,103930.0,0.88550313]
[1747158026329,0.26350871,103940.0,103930.0,0.86625988]
[1747158026555,0.26350871,103940.0,103930.0,0.87588146]
[1747158027172,0.26350871,103940.0,103930.0,0.88550295]
[1747158027789,0.26350871,103940.0,103930.0,0.87588146]
[1747158028028,0.26350871,103940.0,103930.0,0.88550304]
[1747158028459,0.08071094,103940.0,103930.0,0.89512443]
[1747158028601,0.07109001,103940.0,103930.0,0.89512443]
[1747158028816,0.08071094,103940.0,103930.0,0.89512443]
[1747158029428,0.08071094,103940.0,103930.0,0.90474564]
[1747158029429,0.00704842,103940.0,103930.0,0.90474564]
[1747158029658,0.01666861,103940.0,103930.0,0.92794564]
[1747158030004,0.02628898,103940.0,103930.0,0.92794564]
[1747158030209,0.02628898,103940.0,103930.0,0.90474564]
[1747158030393,0.02228898,103940.0,103930.0,0.90474564]
[1747158030641,0.01928889,103940.0,103930.0,0.90474564]
[1747158030847,0.00404842,103940.0,103930.0,0.92794564]
[1747158031056,0.00204842,103940.0,103930.0,0.92794564]
[1747158031290,4.842e-05,103940.0,103930.0,1.02525504]
[1747158031507,4.842e-05,103940.0,103930.0,1.04795504]
[1747158032524,0.00966852,103940.0,103930.0,1.02525504]
[1747158033159,4.842e-05,103940.0,103930.0,1.02525504]
[1747158035164,4.842e-05,103940.0,103930.0,1.04745504]
[1747158038622,4.842e-05,103940.0,103930.0,1.44237604]
[1747158039105,4.842e-05,103940.0,103930.0,1.29304004]
[1747158039325,4.842e-05,103940.0,103930.0,1.23018304]
[1747158039747,4.842e-05,103940.0,103930.0,1.04745504]
[1747158039951,4.842e-05,103940.0,103930.0,1.02525504]
[1747158040170,4.842e-05,103940.0,103930.0,1.04635504]
[1747158042518,4.842e-05,103940.0,103930.0,1.02525504]
[1747158043371,4.842e-05,103940.0,103930.0,1.04645504]
[1747158043581,4.842e-05,103940.0,103930.0,1.45985504]
[1747158044612,4.842e-05,103940.0,103930.0,1.73985504]
[1747158048826,4.842e-05,103940.0,103930.0,1.43686772]
[1747158049054,4.842e-05,103940.0,103930.0,1.94785504]
[1747158049365,4.842e-05,103940.0,103930.0,2.04221118]
[1747158050392,4.842e-05,103940.0,103930.0,1.79783691]
[1747158050598,4.842e-05,103940.0,103930.0,1.68101118]
[1747158052380,4.842e-05,103940.0,103930.0,2.02101118]
[1747158053500,4.842e-05,103940.0,103930.0,2.04281118]
[1747158053689,4.842e-05,103940.0,103930.0,2.92039018]
[1747158053896,4.842e-05,103940.0,103930.0,2.81287918]
[1747158054190,4.842e-05,103940.0,103930.0,2.76469918]
[1747158054589,4.842e-05,103940.0,103930.0,2.04281118]
[1747158054842,4.842e-05,103940.0,103930.0,2.77234918]
[1747158055242,4.842e-05,103940.0,103930.0,2.75054918]
[1747158055472,4.842e-05,103940.0,103930.0,1.79185118]
[1747158055808,4.842e-05,103940.0,103930.0,1.95745118]
[1747158056041,4.842e-05,103940.0,103930.0,1.79185118]
[1747158056224,4.842e-05,103940.0,103930.0,1.96183118]
[1747158056436,4.842e-05,103940.0,103930.0,1.24049572]
[1747158056652,0.04484842,103940.0,103930.0,1.68492039]
[1747158057322,0.02154842,103940.0,103930.0,1.78222979]
[1747158058357,4.842e-05,103940.0,103930.0,1.78222979]
[1747158058776,4.842e-05,103940.0,103930.0,1.80472979]
[1747158059941,4.842e-05,103940.0,103930.0,2.39251179]
[1747158060289,4.842e-05,103940.0,103930.0,2.09546879]
[1747158061135,4.842e-05,103940.0,103930.0,1.78222979]
[1747158061340,4.842e-05,103940.0,103930.0,2.00504679]
[1747158061562,4.842e-05,103940.0,103930.0,2.40609179]
[1747158061753,4.842e-05,103940.0,103930.0,2.38084679]
[1747158061955,4.842e-05,103940.0,103930.0,2.19562979]
[1747158062122,4.842e-05,103940.0,103930.0,2.38560279]
[1747158062521,4.842e-05,103940.0,103930.0,2.40810279]
[1747158067889,0.0217,103960.0,103950.0,0.55162231]
[1747158068127,0.0217,103960.0,103950.0,1.15648577]
[1747158068397,0.00901057,103960.0,103950.0,1.25379517]
[1747158068597,0.002,103970.0,103960.0,0.56123781]
[1747158068799,0.0224,103980.0,103970.0,0.56121653]
[1747158069008,0.0224,103980.0,103970.0,1.16607999]
[1747158069461,0.03201649,103980.0,103970.0,1.16607999]
[1747158069861,0.0224,103980.0,103970.0,1.16607999]
[1747158070279,0.0224,103980.0,103970.0,1.26338939]
[1747158070474,0.06374765,103990.0,103980.0,0.21157886]
[1747158070736,0.26569004,103990.0,103980.0,0.59930537]
[1747158070924,0.28689004,103990.0,103980.0,0.59930537]
[1747158071129,0.08494839,103990.0,103980.0,0.61853936]
[1747158071325,0.08494839,103990.0,103980.0,0.83584386]
[1747158071533,0.07533218,103990.0,103980.0,0.83584386]
[1747158071750,0.07533218,103990.0,103980.0,0.84546063]
[1747158072042,0.07533218,103990.0,103980.0,0.54294508]
[1747158072308,0.07933218,103990.0,103980.0,0.53332785]
[1747158072531,0.08333218,103990.0,103980.0,0.52371081]
[1747158072735,0.08333218,103990.0,103980.0,0.73099081]
[1747158073153,0.27565836,103990.0,103980.0,0.71175746]
[1747158073365,0.27565836,103990.0,103980.0,0.7213746]
[1747158073579,0.27565836,103990.0,103980.0,0.71175746]
[1747158073757,0.27565836,103990.0,103980.0,0.73099164]
[1747158074172,0.26604261,103990.0,103980.0,0.70214023]
[1747158074606,0.26604261,103990.0,103980.0,0.72137441]
[1747158074814,0.26604261,103990.0,103980.0,0.71175746]
[1747158075041,0.26604261,103990.0,103980.0,0.7213746]
[1747158075270,0.25642668,103990.0,103980.0,0.70214023]
[1747158076172,0.25642668,103990.0,103980.0,0.71175737]
[1747158076838,0.25642668,103990.0,103980.0,0.70214023]
[1747158077019,0.25642668,103990.0,103980.0,0.71175737]
[1747158077245,0.25642668,103990.0,103980.0,0.70214023]
[1747158077453,0.25642668,103990.0,103980.0,0.71175746]
[1747158077958,0.25642668,103990.0,103980.0,0.7213746]
[1747158080156,0.25642668,103990.0,103980.0,0.73099164]
[1747158080357,0.25642668,103990.0,103980.0,0.74060859]
[1747158080578,0.25642668,103990.0,103980.0,1.052741]
[1747158080768,0.25642668,103990.0,103980.0,1.04312414]
[1747158080986,0.25642668,103990.0,103980.0,0.74060859]
[1747158081432,0.25642668,103990.0,103980.0,0.75022545]
[1747158081639,0.25642668,103990.0,103980.0,0.74060859]
[1747158082089,0.01048438,103990.0,103980.0,1.39274035]
[1747158082489,0.01048438,103990.0,103980.0,1.49004975]
[1747158082910,0.00648438,103990.0,103980.0,1.49004975]
[1747158083359,0.00648438,103990.0,103980.0,1.53474975]
[1747158084176,0.00848438,103990.0,103980.0,1.53474975]
[1747158084360,0.00448438,103990.0,103980.0,1.53474975]
[1747158084562,0.00248438,103990.0,103980.0,1.53474975]
[1747158084764,0.00448438,103990.0,103980.0,1.53474975]
[1747158085159,0.00248438,103990.0,103980.0,1.53474975]
[1747158085549,0.00248438,103990.0,103980.0,1.56360775]
[1747158087301,3.18228662,104010.0,104000.0,0.02884503]
[1747158087509,3.17000991,104010.0,104000.0,1.17697997]
[1747158087722,3.17000991,104010.0,104000.0,1.72309322]
[1747158087938,3.17000991,104010.0,104000.0,2.24039222]
[1747158088152,3.17000991,104010.0,104000.0,1.90163222]
[1747158089265,3.17000991,104010.0,104000.0,1.72309322]
[1747158089535,3.17000991,104010.0,104000.0,2.00309322]
[1747158091012,3.16272725,104010.0,104000.0,2.00309322]
[1747158091467,3.0851274,104010.0,104000.0,2.00309322]
[1747158091672,3.03706296,104010.0,104000.0,2.00309322]
[1747158091876,2.98899852,104010.0,104000.0,2.00309322]
[1747158092108,2.16565854,104010.0,104000.0,2.00309322]
[1747158092362,1.63245878,104010.0,104000.0,2.92696507]
[1747158092632,1.56039434,104010.0,104000.0,2.92696507]
[1747158092853,1.5123299,104010.0,104000.0,2.92696507]
[1747158093084,1.41620102,104010.0,104000.0,2.70988507]
[1747158093291,1.32007214,104010.0,104000.0,2.75057307]
[1747158093508,1.25322095,104010.0,104000.0,2.75057307]
[1747158093707,1.25322095,104010.0,104000.0,2.75257307]
[1747158093904,1.18115095,104010.0,104000.0,2.75257307]
[1747158094113,1.18115095,104010.0,104000.0,2.75057307]
[1747158094348,1.18115095,104010.0,104000.0,2.75457307]
[1747158094684,1.18115095,104010.0,104000.0,2.75657307]
[1747158095128,1.18115095,104010.0,104000.0,2.75957307]
[1747158095338,0.4753646,104010.0,104000.0,2.46705752]
[1747158095544,0.4463646,104010.0,104000.0,2.46705752]
[1747158095750,0.3983168,104010.0,104000.0,2.46705752]
[1747158096206,0.303019,104010.0,104000.0,2.46705752]
[1747158096612,0.2509712,104010.0,104000.0,2.46705752]
[1747158097027,0.2029234,104010.0,104000.0,2.46705752]
[1747158097191,0.1548756,104010.0,104000.0,2.46705752]
[1747158097391,0.1548756,104010.0,104000.0,2.88045752]
[1747158097590,0.1068278,104010.0,104000.0,2.88045752]
[1747158097858,0.05878,104010.0,104000.0,2.90930452]
[1747158098063,0.0126,104010.0,104000.0,2.38974897]
[1747158098261,0.0126,104010.0,104000.0,2.59670897]
[1747158098689,0.0456,104030.0,104020.0,0.56111019]
[1747158098910,0.0456,104030.0,104020.0,1.07245959]
[1747158099497,0.0456,104030.0,104020.0,1.10130959]
[1747158101108,0.0456,104030.0,104020.0,1.12028879]
[1747158101318,0.34811555,104030.0,104020.0,1.12028879]
[1747158101838,0.32601555,104030.0,104020.0,1.12028879]
[1747158102042,0.0235,104030.0,104020.0,1.12028879]
[1747158102248,0.32601555,104030.0,104020.0,1.13465755]
[1747158102463,0.32601555,104030.0,104020.0,1.13457755]
[1747158102870,0.32589781,104030.0,104020.0,1.13457755]
[1747158103080,0.32589781,104030.0,104020.0,1.12020879]
[1747158103260,0.34699781,104030.0,104020.0,1.12020879]
[1747158103439,0.34699781,104030.0,104020.0,0.91328879]
[1747158103640,0.34699781,104030.0,104020.0,1.11055591]
[1747158103850,0.34699781,104030.0,104020.0,1.12016879]
[1747158106498,0.32589781,104030.0,104020.0,1.12016879]
[1747158107282,0.32589781,104030.0,104020.0,1.13477683]
[1747158107980,0.30439781,104030.0,104020.0,1.13477683]
[1747158108219,0.002,104030.0,104020.0,1.13477683]
[1747158108456,0.002,104030.0,104020.0,1.17967683]
[1747158109589,0.002,104030.0,104020.0,1.59707683]
[1747158111022,0.002,104030.0,104020.0,1.60007683]
[1747158112570,0.30439781,104030.0,104020.0,1.55517683]
[1747158112718,0.002,104030.0,104020.0,1.55517683]
[1747158114445,0.30439781,104030.0,104020.0,1.55517683]
[1747158114921,0.30439781,104030.0,104020.0,1.52632683]
[1747158115793,0.002,104030.0,104020.0,1.56952683]
[1747158116005,0.002,104030.0,104020.0,3.43220583]
[1747158116660,0.002,104050.0,104040.0,0.56106769]
[1747158116878,0.00214511,104050.0,104040.0,1.07193709]
[1747158118123,0.00214511,104050.0,104040.0,1.11833709]
[1747158118343,0.00214511,104050.0,104040.0,1.14717909]
[1747158118764,0.00214511,104050.0,104040.0,1.10077909]
[1747158118972,0.00214511,104050.0,104040.0,1.07193709]
[1747158119621,0.00214511,104050.0,104040.0,1.07593709]
[1747158120552,0.00214511,104050.0,104040.0,1.07893709]
[1747158121856,0.02514511,104050.0,104040.0,1.07893709]
[1747158122080,0.04874511,104050.0,104040.0,1.07893709]
[1747158123104,0.04874511,104050.0,104040.0,0.65576605]
[1747158123326,0.36075303,104050.0,104040.0,1.06920624]
[1747158123541,0.36075294,104050.0,104040.0,1.08842896]
[1747158123775,0.36075294,104050.0,104040.0,1.09803954]
[1747158124177,0.35114292,104050.0,104040.0,1.09803954]
[1747158124380,0.36075303,104050.0,104040.0,0.65576596]
[1747158124621,0.38958429,104050.0,104040.0,0.74599375]
[1747158124827,0.37036305,104050.0,104040.0,0.98146833]
[1747158125038,0.37036305,104050.0,104040.0,0.98146843]
[1747158125244,0.36075285,104050.0,104040.0,0.98146843]
[1747158125619,0.37036296,104050.0,104040.0,0.98707965]
[1747158125808,0.37997335,104050.0,104040.0,0.95063375]
[1747158126047,0.37997335,104050.0,104040.0,0.95724534]
[1747158126263,0.37997335,104050.0,104040.0,0.96885684]
[1747158126461,0.37997335,104050.0,104040.0,0.97846825]
[1747158126889,0.37997335,104050.0,104040.0,0.96885684]
[1747158127055,0.37997335,104050.0,104040.0,0.55545684]
[1747158127230,0.5817993,104050.0,104040.0,0.53623375]
[1747158127446,0.5817993,104050.0,104040.0,0.76209666]
[1747158127447,0.38958364,104050.0,104040.0,0.76209666]
[1747158127687,0.38958364,104050.0,104040.0,0.75248525]
[1747158128079,0.38958364,104050.0,104040.0,0.54584525]
[1747158128257,0.38958364,104050.0,104040.0,0.76209666]
[1747158128818,0.37997316,104050.0,104040.0,0.77170779]
[1747158129053,0.38958355,104050.0,104040.0,0.77170797]
[1747158129277,0.38958355,104050.0,104040.0,0.76205666]
[1747158129518,0.39919403,104050.0,104040.0,0.76205666]
[1747158130431,0.38958355,104050.0,104040.0,0.76205666]
[1747158130673,0.38958355,104050.0,104040.0,0.78127919]
[1747158130896,0.38958355,104050.0,104040.0,0.77166797]
[1747158131109,0.37997316,104050.0,104040.0,0.78127919]
[1747158131294,0.38958355,104050.0,104040.0,0.77166797]
[1747158131517,0.39919412,104050.0,104040.0,0.76205666]
[1747158131721,0.39919403,104050.0,104040.0,0.77166797]
[1747158132157,0.38958355,104050.0,104040.0,0.76205666]
[1747158132368,0.39919403,104050.0,104040.0,0.74283375]
[1747158132837,0.39919403,104050.0,104040.0,0.76205684]
[1747158133042,0.39919394,104050.0,104040.0,0.77166825]
[1747158133259,0.39919394,104050.0,104040.0,0.76205684]
[1747158133464,0.39919385,104050.0,104040.0,0.78127956]
[1747158133683,0.39919385,104050.0,104040.0,0.77166825]
[1747158133896,0.39919385,104050.0,104040.0,0.78127956]
[1747158134469,0.05835504,104050.0,104040.0,0.78127919]
[1747158134640,0.37036296,104050.0,104040.0,0.78127919]
[1747158134835,0.37997326,104050.0,104040.0,0.77166797]
[1747158135059,0.37036296,104050.0,104040.0,0.78127919]
[1747158135287,0.37997326,104050.0,104040.0,0.78127919]
[1747158135741,0.38958374,104050.0,104040.0,0.78127919]
[1747158135942,0.38958374,104050.0,104040.0,0.77166797]
[1747158136151,0.58179976,104050.0,104040.0,0.74275375]
[1747158136364,0.38958448,104050.0,104040.0,0.76197684]
[1747158136586,0.58179976,104050.0,104040.0,0.74275375]
[1747158136769,0.38958448,104050.0,104040.0,0.56974318]
[1747158136982,0.38958448,104050.0,104040.0,0.76197693]
[1747158137618,0.38958448,104050.0,104040.0,0.77158834]
[1747158137825,0.38958448,104050.0,104040.0,0.78119965]
[1747158138029,0.38958448,104050.0,104040.0,0.75236543]
[1747158138030,0.58179976,104050.0,104040.0,0.75236543]
[1747158138208,0.58179976,104050.0,104040.0,0.76197702]
[1747158138409,0.37997381,104050.0,104040.0,0.78119974]
[1747158138614,0.3799739,104050.0,104040.0,0.78119974]
[1747158138819,0.3799739,104050.0,104040.0,0.78119983]
[1747158139233,0.38958466,104050.0,104040.0,0.78119983]
[1747158139438,0.3799739,104050.0,104040.0,0.78119983]
[1747158139734,0.58179994,104050.0,104040.0,0.75236543]
[1747158139937,0.58179994,104050.0,104040.0,0.76197702]
[1747158140569,0.58179994,104050.0,104040.0,0.77158852]
[1747158140975,0.58179994,104050.0,104040.0,0.76197702]
[1747158141200,0.58179994,104050.0,104040.0,0.77158852]
[1747158141576,0.58179994,104050.0,104040.0,0.76197684]
[1747158142015,0.58179994,104050.0,104040.0,0.76197693]
[1747158142447,0.58179994,104050.0,104040.0,0.76197702]
[1747158142662,0.57218983,104050.0,104040.0,0.55052]
[1747158142915,0.56257953,104050.0,104040.0,0.55044]
[1747158143135,0.56257953,104050.0,104040.0,0.344]
[1747158145070,0.56257953,104050.0,104040.0,0.54584543]
[1747158146092,0.56257953,104050.0,104040.0,0.55545693]
[1747158146306,0.56257953,104050.0,104040.0,0.55545702]
[1747158147174,0.56257953,104050.0,104040.0,0.54584543]
[1747158147633,0.56257953,104050.0,104040.0,0.55545702]
[1747158148067,0.56257953,104050.0,104040.0,0.56506852]
[1747158148269,0.56257953,104050.0,104040.0,0.55545702]
[1747158148582,0.56257953,104050.0,104040.0,0.54584543]
[1747158148707,0.56257953,104050.0,104040.0,0.55545693]
[1747158148907,0.56257953,104050.0,104040.0,0.55545702]
[1747158149647,0.55296896,104050.0,104040.0,0.74259375]
[1747158150861,0.55296896,104050.0,104040.0,0.75220534]
[1747158151031,0.55296896,104050.0,104040.0,0.74259375]
[1747158151249,0.25057115,104050.0,104040.0,1.03220543]
[1747158151467,0.04874511,104050.0,104040.0,1.05142833]
[1747158151697,0.26979174,104050.0,104040.0,1.02259375]
[1747158151939,0.56257935,104050.0,104040.0,1.02259375]
[1747158152158,0.26018154,104050.0,104040.0,1.02259375]
[1747158152605,0.26018154,104050.0,104040.0,1.03220534]
[1747158153074,0.26018154,104050.0,104040.0,1.03220543]
[1747158153509,0.01175531,104050.0,104040.0,1.04181702]
[1747158153726,0.00214511,104050.0,104040.0,1.10543937]
[1747158153947,0.00214511,104050.0,104040.0,1.20274877]
[1747158154164,0.01175522,104050.0,104040.0,1.20274877]
[1747158154607,0.01175504,104050.0,104040.0,1.20274877]
[1747158155253,0.00214511,104050.0,104040.0,1.20274877]
[1747158160518,0.00214511,104050.0,104040.0,1.61614877]
[1747158163496,0.00214511,104050.0,104040.0,1.20274877]
[1747158164538,0.04416524,104050.0,104040.0,1.13924642]
[1747158164766,0.25988052,104050.0,104040.0,1.33587483]
[1747158164979,0.27910157,104050.0,104040.0,1.35509783]
[1747158165203,0.08688629,104050.0,104040.0,1.37432036]
[1747158165416,0.07727572,104050.0,104040.0,1.37431981]
[1747158165637,0.07727572,104050.0,104040.0,1.37431926]
[1747158166448,0.08688629,104050.0,104040.0,1.35509737]
[1747158166666,0.27910157,104050.0,104040.0,1.33587483]
[1747158166895,0.27910157,104050.0,104040.0,1.36466933]
[1747158166896,0.26949164,104050.0,104040.0,1.36466933]
[1747158167107,0.07727572,104050.0,104040.0,1.36466878]
[1747158167325,0.05377563,104050.0,104040.0,1.37427982]
[1747158167555,0.05377563,104050.0,104040.0,1.36466896]
[1747158167774,0.05377563,104050.0,104040.0,1.37427954]
[1747158169112,0.05377563,104050.0,104040.0,1.3646685]
[1747158170012,0.0633862,104050.0,104040.0,1.3646685]
[1747158170202,0.05377563,104050.0,104040.0,1.3646685]
[1747158170517,0.05377563,104050.0,104040.0,1.37427954]
[1747158171642,0.05377563,104050.0,104040.0,1.3646685]
[1747158171891,0.04416524,104050.0,104040.0,1.37427954]
[1747158172115,0.03097536,104050.0,104040.0,1.37427954]
[1747158172307,0.04058556,104050.0,104040.0,1.37427954]
[1747158172455,0.04058547,104050.0,104040.0,1.37427954]
[1747158173717,0.03097517,104050.0,104040.0,1.37427954]
[1747158173926,0.04058547,104050.0,104040.0,1.37427954]
[1747158174141,0.04058547,104050.0,104040.0,1.3646685]
[1747158174509,0.05019604,104050.0,104040.0,1.36466859]
[1747158174713,0.06318547,104050.0,104040.0,1.37427963]
[1747158174955,0.06318602,104050.0,104040.0,1.34544587]
[1747158175081,0.06318602,104050.0,104040.0,1.355057]
[1747158175511,0.05357554,104050.0,104040.0,1.36466804]
[1747158177120,0.03097554,104050.0,104040.0,1.36466804]
[1747158178026,0.03097554,104050.0,104040.0,1.02466804]
[1747158178913,0.02136524,104050.0,104040.0,1.02466804]
[1747158179126,0.03097544,104050.0,104040.0,1.02466804]
[1747158179357,0.02136524,104050.0,104040.0,1.02466804]
[1747158180198,0.02136524,104050.0,104040.0,1.36466804]
[1747158182234,0.00214511,104050.0,104040.0,1.36466804]
[1747158182709,0.00214511,104050.0,104040.0,1.40976804]
[1747158183132,0.00214511,104050.0,104040.0,1.82316804]
[1747158185370,0.00214511,104050.0,104040.0,3.07519204]
[1747158185511,0.00214511,104050.0,104040.0,2.50831104]
[1747158185720,0.00214511,104050.0,104040.0,2.36605904]
[1747158187828,0.00214511,104050.0,104040.0,2.08257904]
[1747158188029,0.00214511,104050.0,104040.0,2.04413704]
[1747158194576,0.00214511,104050.0,104040.0,3.17990404]
[1747158194794,0.00214511,104050.0,104040.0,2.76619004]
[1747158197255,0.01160808,104070.0,104060.0,0.5610252]
[1747158197477,0.02121635,104070.0,104060.0,0.6583346]
[1747158197728,0.002,104070.0,104060.0,0.8644946]
[1747158199130,0.03360817,104070.0,104060.0,0.8644946]
[1747158199317,0.03360808,104070.0,104060.0,0.8644946]
[1747158199537,0.024,104070.0,104060.0,0.8644946]
[1747158199863,0.025,104070.0,104060.0,0.8644946]
[1747158200749,0.06651681,104070.0,104060.0,1.0648055]
[1747158200967,0.06651681,104070.0,104060.0,1.08402415]
[1747158201149,0.06651681,104070.0,104060.0,1.05519594]
[1747158201150,0.08573436,104070.0,104060.0,1.05519594]
[1747158201408,0.07612545,104070.0,104060.0,1.07441506]
[1747158201599,0.4665381,104070.0,104060.0,0.9482768]
[1747158201822,0.74856929,104070.0,104060.0,0.54996]
[1747158202050,0.24610645,104060.0,104050.0,0.60561274]
[1747158202269,0.43473056,104060.0,104050.0,0.4134]
[1747158202505,0.06352077,104050.0,104040.0,0.83044525]
[1747158202737,0.07313079,104050.0,104040.0,0.94697718]
[1747158202965,0.07313079,104050.0,104040.0,1.29658822]
[1747158202966,0.0731307,104050.0,104040.0,1.29658822]
[1747158203182,0.0731307,104050.0,104040.0,1.28697718]
[1747158203403,0.08274118,104050.0,104040.0,1.27736606]
[1747158203623,0.09235185,104050.0,104040.0,1.27736606]
[1747158203832,0.09235185,104050.0,104040.0,1.07349737]
[1747158204109,0.27495702,104050.0,104040.0,1.04466315]
[1747158204326,0.27495702,104050.0,104040.0,0.94735375]
[1747158204327,0.56763056,104050.0,104040.0,0.94735375]
[1747158204543,0.36580461,104050.0,104040.0,0.95696534]
[1747158204743,0.37541518,104050.0,104040.0,0.96657684]
[1747158205067,0.07313144,104050.0,104040.0,0.98218815]
[1747158205520,0.0827422,104050.0,104040.0,0.98218815]
[1747158205737,0.0827422,104050.0,104040.0,0.97257684]
[1747158205925,0.27495748,104050.0,104040.0,0.96296543]
[1747158206147,0.26534709,104050.0,104040.0,0.95335375]
[1747158206375,0.26534709,104050.0,104040.0,0.97257693]
[1747158206521,0.26534709,104050.0,104040.0,0.95335375]
[1747158206953,0.002,104070.0,104050.0,0.00960993]
[1747158207137,0.002,104070.0,104060.0,0.87249893]
[1747158207330,0.002,104070.0,104060.0,0.8715346]
[1747158207537,0.0262,104070.0,104060.0,0.8715346]
[1747158207768,0.05750827,104070.0,104060.0,0.86192541]
[1747158208019,0.06711672,104070.0,104060.0,0.85231594]
[1747158208225,0.06711672,104070.0,104060.0,0.87153497]
[1747158208423,0.06811672,104070.0,104060.0,0.8619255]
[1747158208624,0.06811672,104070.0,104060.0,0.87153497]
[1747158208848,0.39061782,104070.0,104060.0,0.7453968]
[1747158209065,0.381009,104070.0,104060.0,0.75500654]
[1747158209292,0.381009,104070.0,104060.0,0.54180664]
[1747158209493,0.57318789,104070.0,104060.0,0.5321968]
[1747158209694,0.27090461,104070.0,104060.0,0.5321968]
[1747158210180,0.06911736,104070.0,104060.0,0.54180645]
[1747158210472,0.27090461,104070.0,104060.0,0.5321968]
[1747158210692,0.06911736,104070.0,104060.0,0.5321968]
[1747158210861,0.0715197,104070.0,104060.0,0.54180664]
[1747158211065,0.06911736,104070.0,104060.0,0.55141638]
[1747158211271,0.06911736,104070.0,104060.0,0.5321968]
[1747158211272,0.26369804,104070.0,104060.0,0.5321968]
[1747158211441,0.2612957,104070.0,104060.0,0.55141638]
[1747158211647,0.07872627,104070.0,104060.0,0.54180664]
[1747158212098,0.06911736,104070.0,104060.0,0.54180664]
[1747158212317,0.06911736,104070.0,104060.0,0.55141629]
[1747158212531,0.27090461,104070.0,104060.0,0.5321968]
[1747158212761,0.56357981,104070.0,104060.0,0.34]
[1747158212973,0.05153061,104050.0,104040.0,0.21145702]
[1747158213180,0.05153061,104050.0,104040.0,0.63837684]
[1747158213181,0.06442013,104050.0,104040.0,0.63837684]
[1747158213391,0.06442013,104050.0,104040.0,0.98798806]
[1747158213606,0.22102632,104060.0,104050.0,0.34]